Workbook

Sheet Palk Sisestus
B1: PALGAKALKULAATOR | K1: PERIOODI LÕPP: | L1: 41372 | N1: ETTEVÕTTE NIMI: | P1: ADVENTURE WORKS
B3: ID | C3: Töötaja nimi | D3: Regulaarsed töötunnid | E3: Puhkusetunnid | F3: Haiguspuhkuse tunnid | G3: Ületunnitöö | H3: Ületunnitöö määr | I3: Brutotasu | J3: Maksud ja mahaarvamised | K3: Muud mahaarvamised | L3: Netotasu | N3: Tunnitasu | O3: Maksud | P3: Kinnipeetavad maksud | Q3: Maakonnamaks | R3: Tulumaks | S3: Sotsiaalmaks | T3: Ravikindlustus | U3: Kinnipeetud maksud kokku | V3: Kindlustuse mahaarvamine | W3: Muud regulaarsed mahaarvamised | X3: Regulaarsed mahaarvamised kokku
B4: 1001 | C4: Tony Smith | D4: 50 | E4: 5 | F4: 1 | I4: =SUM(Töötajad[[#This Row],[Regulaarsed töötunnid]:[Haiguspuhkuse tunnid]])*Töötajad[[#This Row],[Tunnitasu]]+Töötajad[[#This Row],[Ületunnitöö]]*Töötajad[[#This Row],[Ületunnitöö määr]] -> 560 | J4: =Töötajad[[#This Row],[Brutotasu]]*Töötajad[[#This Row],[Kinnipeetud maksud kokku]] + Töötajad[[#This Row],[Regulaarsed mahaarvamised kokku]] -> 273.08 | K4: 20 | L4: =Töötajad[[#This Row],[Brutotasu]]-Töötajad[[#This Row],[Maksud ja mahaarvamised]]-Töötajad[[#This Row],[Muud mahaarvamised]] -> 266.92 | N4: 10 | O4: 1 | P4: 4 | Q4: 0.023 | R4: 0.28 | S4: 0.063 | T4: 0.0145 | U4: =SUM(Töötajad[[#This Row],[Maakonnamaks]:[Ravikindlustus]]) -> 0.3805 | V4: 20 | W4: 40 | X4: =SUM(Töötajad[[#This Row],[Kindlustuse mahaarvamine]:[Muud regulaarsed mahaarvamised]]) -> 60
B5: 1002 | C5: David Jones | D5: 40 | I5: =SUM(Töötajad[[#This Row],[Regulaarsed töötunnid]:[Haiguspuhkuse tunnid]])*Töötajad[[#This Row],[Tunnitasu]]+Töötajad[[#This Row],[Ületunnitöö]]*Töötajad[[#This Row],[Ületunnitöö määr]] -> 320 | J5: =Töötajad[[#This Row],[Brutotasu]]*Töötajad[[#This Row],[Kinnipeetud maksud kokku]] + Töötajad[[#This Row],[Regulaarsed mahaarvamised kokku]] -> 131.76 | L5: =Töötajad[[#This Row],[Brutotasu]]-Töötajad[[#This Row],[Maksud ja mahaarvamised]]-Töötajad[[#This Row],[Muud mahaarvamised]] -> 188.24 | N5: 8 | O5: 1 | P5: 1 | Q5: 0.023 | R5: 0.28 | S5: 0.063 | T5: 0.0145 | U5: =SUM(Töötajad[[#This Row],[Maakonnamaks]:[Ravikindlustus]]) -> 0.3805 | V5: 0 | W5: 10 | X5: =SUM(Töötajad[[#This Row],[Kindlustuse mahaarvamine]:[Muud regulaarsed mahaarvamised]]) -> 10
B6: 1003 | C6: Denise Smith | D6: 35 | E6: 3 | I6: =SUM(Töötajad[[#This Row],[Regulaarsed töötunnid]:[Haiguspuhkuse tunnid]])*Töötajad[[#This Row],[Tunnitasu]]+Töötajad[[#This Row],[Ületunnitöö]]*Töötajad[[#This Row],[Ületunnitöö määr]] -> 532 | J6: =Töötajad[[#This Row],[Brutotasu]]*Töötajad[[#This Row],[Kinnipeetud maksud kokku]] + Töötajad[[#This Row],[Regulaarsed mahaarvamised kokku]] -> 240.426 | L6: =Töötajad[[#This Row],[Brutotasu]]-Töötajad[[#This Row],[Maksud ja mahaarvamised]]-Töötajad[[#This Row],[Muud mahaarvamised]] -> 291.574 | N6: 14 | O6: 1 | P6: 3 | Q6: 0.023 | R6: 0.28 | S6: 0.063 | T6: 0.0145 | U6: =SUM(Töötajad[[#This Row],[Maakonnamaks]:[Ravikindlustus]]) -> 0.3805 | V6: 18 | W6: 20 | X6: =SUM(Töötajad[[#This Row],[Kindlustuse mahaarvamine]:[Muud regulaarsed mahaarvamised]]) -> 38
B7: 1008 | C7: Sebastien Motte | D7: 50 | E7: 5 | F7: 1 | I7: =SUM(Töötajad[[#This Row],[Regulaarsed töötunnid]:[Haiguspuhkuse tunnid]])*Töötajad[[#This Row],[Tunnitasu]]+Töötajad[[#This Row],[Ületunnitöö]]*Töötajad[[#This Row],[Ületunnitöö määr]] -> 1120 | J7: =Töötajad[[#This Row],[Brutotasu]]*Töötajad[[#This Row],[Kinnipeetud maksud kokku]] + Töötajad[[#This Row],[Regulaarsed mahaarvamised kokku]] -> 441.16 | L7: =Töötajad[[#This Row],[Brutotasu]]-Töötajad[[#This Row],[Maksud ja mahaarvamised]]-Töötajad[[#This Row],[Muud mahaarvamised]] -> 678.84 | N7: 20 | O7: 1 | P7: 0 | Q7: 0.023 | R7: 0.28 | S7: 0.063 | T7: 0.0145 | U7: =SUM(Töötajad[[#This Row],[Maakonnamaks]:[Ravikindlustus]]) -> 0.3805 | V7: 15 | X7: =SUM(Töötajad[[#This Row],[Kindlustuse mahaarvamine]:[Muud regulaarsed mahaarvamised]]) -> 15
B8: 1011 | C8: Isabelle Scemla | D8: 40 | G8: 2 | H8: 15 | I8: =SUM(Töötajad[[#This Row],[Regulaarsed töötunnid]:[Haiguspuhkuse tunnid]])*Töötajad[[#This Row],[Tunnitasu]]+Töötajad[[#This Row],[Ületunnitöö]]*Töötajad[[#This Row],[Ületunnitöö määr]] -> 430 | J8: =Töötajad[[#This Row],[Brutotasu]]*Töötajad[[#This Row],[Kinnipeetud maksud kokku]] + Töötajad[[#This Row],[Regulaarsed mahaarvamised kokku]] -> 223.615 | L8: =Töötajad[[#This Row],[Brutotasu]]-Töötajad[[#This Row],[Maksud ja mahaarvamised]]-Töötajad[[#This Row],[Muud mahaarvamised]] -> 206.385 | N8: 10 | O8: 1 | P8: 0 | Q8: 0.023 | R8: 0.28 | S8: 0.063 | T8: 0.0145 | U8: =SUM(Töötajad[[#This Row],[Maakonnamaks]:[Ravikindlustus]]) -> 0.3805 | V8: 20 | W8: 40 | X8: =SUM(Töötajad[[#This Row],[Kindlustuse mahaarvamine]:[Muud regulaarsed mahaarvamised]]) -> 60
B9: 1012 | C9: David Bristol | D9: 40 | E9: 5 | F9: 1 | I9: =SUM(Töötajad[[#This Row],[Regulaarsed töötunnid]:[Haiguspuhkuse tunnid]])*Töötajad[[#This Row],[Tunnitasu]]+Töötajad[[#This Row],[Ületunnitöö]]*Töötajad[[#This Row],[Ületunnitöö määr]] -> 552 | J9: =Töötajad[[#This Row],[Brutotasu]]*Töötajad[[#This Row],[Kinnipeetud maksud kokku]] + Töötajad[[#This Row],[Regulaarsed mahaarvamised kokku]] -> 270.036 | L9: =Töötajad[[#This Row],[Brutotasu]]-Töötajad[[#This Row],[Maksud ja mahaarvamised]]-Töötajad[[#This Row],[Muud mahaarvamised]] -> 281.964 | N9: 12 | O9: 1 | P9: 4 | Q9: 0.023 | R9: 0.28 | S9: 0.063 | T9: 0.0145 | U9: =SUM(Töötajad[[#This Row],[Maakonnamaks]:[Ravikindlustus]]) -> 0.3805 | V9: 20 | W9: 40 | X9: =SUM(Töötajad[[#This Row],[Kindlustuse mahaarvamine]:[Muud regulaarsed mahaarvamised]]) -> 60
B10: 1025 | C10: Anne Weiler | D10: 36 | F10: 2 | G10: 1 | H10: 18 | I10: =SUM(Töötajad[[#This Row],[Regulaarsed töötunnid]:[Haiguspuhkuse tunnid]])*Töötajad[[#This Row],[Tunnitasu]]+Töötajad[[#This Row],[Ületunnitöö]]*Töötajad[[#This Row],[Ületunnitöö määr]] -> 474 | J10: =Töötajad[[#This Row],[Brutotasu]]*Töötajad[[#This Row],[Kinnipeetud maksud kokku]] + Töötajad[[#This Row],[Regulaarsed mahaarvamised kokku]] -> 225.357 | K10: 25 | L10: =Töötajad[[#This Row],[Brutotasu]]-Töötajad[[#This Row],[Maksud ja mahaarvamised]]-Töötajad[[#This Row],[Muud mahaarvamised]] -> 223.643 | N10: 12 | O10: 1 | P10: 2 | Q10: 0.023 | R10: 0.28 | S10: 0.063 | T10: 0.0145 | U10: =SUM(Töötajad[[#This Row],[Maakonnamaks]:[Ravikindlustus]]) -> 0.3805 | V10: 25 | W10: 20 | X10: =SUM(Töötajad[[#This Row],[Kindlustuse mahaarvamine]:[Muud regulaarsed mahaarvamised]]) -> 45
B11: 1032 | C11: Luka Abrus | D11: 40 | E11: 5 | F11: 1 | I11: =SUM(Töötajad[[#This Row],[Regulaarsed töötunnid]:[Haiguspuhkuse tunnid]])*Töötajad[[#This Row],[Tunnitasu]]+Töötajad[[#This Row],[Ületunnitöö]]*Töötajad[[#This Row],[Ületunnitöö määr]] -> 460 | J11: =Töötajad[[#This Row],[Brutotasu]]*Töötajad[[#This Row],[Kinnipeetud maksud kokku]] + Töötajad[[#This Row],[Regulaarsed mahaarvamised kokku]] -> 175.03 | K11: 50 | L11: =Töötajad[[#This Row],[Brutotasu]]-Töötajad[[#This Row],[Maksud ja mahaarvamised]]-Töötajad[[#This Row],[Muud mahaarvamised]] -> 234.97 | N11: 10 | O11: 1 | P11: 3 | Q11: 0.023 | R11: 0.28 | S11: 0.063 | T11: 0.0145 | U11: =SUM(Töötajad[[#This Row],[Maakonnamaks]:[Ravikindlustus]]) -> 0.3805 | X11: =SUM(Töötajad[[#This Row],[Kindlustuse mahaarvamine]:[Muud regulaarsed mahaarvamised]]) -> 0
B12: 1049 | C12: David Ludwig | D12: 40 | E12: 1 | I12: =SUM(Töötajad[[#This Row],[Regulaarsed töötunnid]:[Haiguspuhkuse tunnid]])*Töötajad[[#This Row],[Tunnitasu]]+Töötajad[[#This Row],[Ületunnitöö]]*Töötajad[[#This Row],[Ületunnitöö määr]] -> 615 | J12: =Töötajad[[#This Row],[Brutotasu]]*Töötajad[[#This Row],[Kinnipeetud maksud kokku]] + Töötajad[[#This Row],[Regulaarsed mahaarvamised kokku]] -> 259.0075 | K12: 23 | L12: =Töötajad[[#This Row],[Brutotasu]]-Töötajad[[#This Row],[Maksud ja mahaarvamised]]-Töötajad[[#This Row],[Muud mahaarvamised]] -> 332.9925 | N12: 15 | O12: 1 | P12: 2 | Q12: 0.023 | R12: 0.28 | S12: 0.063 | T12: 0.0145 | U12: =SUM(Töötajad[[#This Row],[Maakonnamaks]:[Ravikindlustus]]) -> 0.3805 | V12: 25 | X12: =SUM(Töötajad[[#This Row],[Kindlustuse mahaarvamine]:[Muud regulaarsed mahaarvamised]]) -> 25
B13: Kokku | C13: =SUBTOTAL(103,Töötajad[Töötaja nimi]) -> 9 | D13: =SUBTOTAL(109,Töötajad[Regulaarsed töötunnid]) -> 371 | E13: =SUBTOTAL(109,Töötajad[Puhkusetunnid]) -> 24 | F13: =SUBTOTAL(109,Töötajad[Haiguspuhkuse tunnid]) -> 6 | G13: =SUBTOTAL(109,Töötajad[Ületunnitöö]) -> 3 | I13: =SUBTOTAL(109,Töötajad[Brutotasu]) -> 5063 | J13: =SUBTOTAL(109,Töötajad[Maksud ja mahaarvamised]) -> 2239.4715 | K13: =SUBTOTAL(109,Töötajad[Muud mahaarvamised]) -> 118 | L13: =SUBTOTAL(109,Töötajad[Netotasu]) -> 2705.5285 | V13: =SUBTOTAL(109,Töötajad[Kindlustuse mahaarvamine]) -> 143 | W13: =SUBTOTAL(109,Töötajad[Muud regulaarsed mahaarvamised]) -> 170 | X13: =SUBTOTAL(109,Töötajad[Regulaarsed mahaarvamised kokku]) -> 313

Sheet palgalehed_mall (hidden)
C2: =EttevõteNimi -> ADVENTURE WORKS
C3: PERIOOD | D3: =PerioodLõpp -> 41372 | G3: NIMI | H3: =IFERROR(INDEX(Töötajad[Töötaja nimi],Palgaleht),"") -> Tony Smith | K3: TÖÖTAJA ID | L3: =IFERROR(INDEX(Töötajad[ID],Palgaleht),"") -> 1001
C4: Maksud | E4: =IFERROR(INDEX(Töötajad[Maksud],Palgaleht),"") -> 1 | G4: Kinnipeetavad maksud | I4: =IFERROR(INDEX(Töötajad[Kinnipeetavad maksud],Palgaleht),"") -> 4 | K4: Töötunnid | M4: =IFERROR(INDEX(Töötajad[Regulaarsed töötunnid],Palgaleht),"") -> 50
C5: Tunnihind | E5: =IFERROR(INDEX(Töötajad[Tunnitasu],Palgaleht),"") -> 10 | G5: Ületunnitöö määr | I5: =IFERROR(INDEX(Töötajad[Ületunnitöö määr],Palgaleht),"") -> 0 | K5: Haiguspuhkuse tunnid | M5: =IFERROR(INDEX(Töötajad[Haiguspuhkuse tunnid],Palgaleht),"") -> 1
C6: Sotsiaalmaks | E6: =IFERROR(INDEX(Töötajad[Sotsiaalmaks],Palgaleht) * INDEX(Töötajad[Brutotasu],Palgaleht),"") -> 35.28 | G6: Tulumaks | I6: =IFERROR(INDEX(Töötajad[Tulumaks],Palgaleht) * INDEX(Töötajad[Brutotasu],Palgaleht),"") -> 156.8 | K6: Puhkusetunnid | M6: =IFERROR(INDEX(Töötajad[Puhkusetunnid],Palgaleht),"") -> 5
C7: Ravikindlustus | E7: =IFERROR(INDEX(Töötajad[Ravikindlustus],Palgaleht) * INDEX(Töötajad[Brutotasu],Palgaleht),"") -> 8.12 | G7: Maakonnamaks | I7: =IFERROR(INDEX(Töötajad[Maakonnamaks],Palgaleht) * INDEX(Töötajad[Brutotasu],Palgaleht),"") -> 12.88 | K7: Ületunnitöö | M7: =IFERROR(INDEX(Töötajad[Ületunnitöö],Palgaleht),"") -> 0
C8: Kindlustuse mahaarvamine | E8: =IFERROR(INDEX(Töötajad[Kindlustuse mahaarvamine],Palgaleht),"") -> 20 | G8: Muud regulaarsed mahaarvamised | I8: =IFERROR(INDEX(Töötajad[Muud regulaarsed mahaarvamised],Palgaleht),"") -> 40 | K8: Brutotasu | M8: =IFERROR(INDEX(Töötajad[Brutotasu],Palgaleht),"") -> 560
C9: Maksud kokku ja | E9: =IFERROR(INDEX(Töötajad[Maksud ja mahaarvamised],Palgaleht),"") -> 273.08 | G9: Muud mahaarvamised | I9: =IFERROR(INDEX(Töötajad[Muud mahaarvamised],Palgaleht),"") -> 20 | K9: Maksud ja mahaarvamised kokku | M9: =IFERROR(INDEX(Töötajad[Maksud ja mahaarvamised],Palgaleht) + INDEX(Töötajad[Muud mahaarvamised],Palgaleht),"") -> 293.08
C10: Regulaarsed mahaarvamised
K11: NETOTASU | M11: =IFERROR(INDEX(Töötajad[Netotasu],Palgaleht),"") -> 266.92
C14: =EttevõteNimi -> ADVENTURE WORKS
C15: PERIOOD | D15: =PerioodLõpp -> 41372 | G15: NIMI | H15: =IFERROR(INDEX(Töötajad[Töötaja nimi],Palgaleht),"") -> David Jones | K15: TÖÖTAJA ID | L15: =IFERROR(INDEX(Töötajad[ID],Palgaleht),"") -> 1002
C16: Maksud | E16: =IFERROR(INDEX(Töötajad[Maksud],Palgaleht),"") -> 1 | G16: Kinnipeetavad maksud | I16: =IFERROR(INDEX(Töötajad[Kinnipeetavad maksud],Palgaleht),"") -> 1 | K16: Töötunnid | M16: =IFERROR(INDEX(Töötajad[Regulaarsed töötunnid],Palgaleht),"") -> 40
C17: Tunnihind | E17: =IFERROR(INDEX(Töötajad[Tunnitasu],Palgaleht),"") -> 8 | G17: Ületunnitöö määr | I17: =IFERROR(INDEX(Töötajad[Ületunnitöö määr],Palgaleht),"") -> 0 | K17: Haiguspuhkuse tunnid | M17: =IFERROR(INDEX(Töötajad[Haiguspuhkuse tunnid],Palgaleht),"") -> 0
C18: Sotsiaalmaks | E18: =IFERROR(INDEX(Töötajad[Sotsiaalmaks],Palgaleht) * INDEX(Töötajad[Brutotasu],Palgaleht),"") -> 20.16 | G18: Tulumaks | I18: =IFERROR(INDEX(Töötajad[Tulumaks],Palgaleht) * INDEX(Töötajad[Brutotasu],Palgaleht),"") -> 89.6 | K18: Puhkusetunnid | M18: =IFERROR(INDEX(Töötajad[Puhkusetunnid],Palgaleht),"") -> 0
C19: Ravikindlustus | E19: =IFERROR(INDEX(Töötajad[Ravikindlustus],Palgaleht) * INDEX(Töötajad[Brutotasu],Palgaleht),"") -> 4.64 | G19: Maakonnamaks | I19: =IFERROR(INDEX(Töötajad[Maakonnamaks],Palgaleht) * INDEX(Töötajad[Brutotasu],Palgaleht),"") -> 7.36 | K19: Ületunnitöö | M19: =IFERROR(INDEX(Töötajad[Ületunnitöö],Palgaleht),"") -> 0
C20: Kindlustuse mahaarvamine | E20: =IFERROR(INDEX(Töötajad[Kindlustuse mahaarvamine],Palgaleht),"") -> 0 | G20: Muud regulaarsed mahaarvamised | I20: =IFERROR(INDEX(Töötajad[Muud regulaarsed mahaarvamised],Palgaleht),"") -> 10 | K20: Brutotasu | M20: =IFERROR(INDEX(Töötajad[Brutotasu],Palgaleht),"") -> 320
C21: Maksud kokku ja | E21: =IFERROR(INDEX(Töötajad[Maksud ja mahaarvamised],Palgaleht),"") -> 131.76 | G21: Muud mahaarvamised | I21: =IFERROR(INDEX(Töötajad[Muud mahaarvamised],Palgaleht),"") -> 0 | K21: Maksud ja mahaarvamised kokku | M21: =IFERROR(INDEX(Töötajad[Maksud ja mahaarvamised],Palgaleht) + INDEX(Töötajad[Muud mahaarvamised],Palgaleht),"") -> 131.76
C22: Regulaarsed mahaarvamised
K23: NETOTASU | M23: =IFERROR(INDEX(Töötajad[Netotasu],Palgaleht),"") -> 188.24
C26: =EttevõteNimi -> ADVENTURE WORKS
C27: PERIOOD | D27: =PerioodLõpp -> 41372 | G27: NIMI | H27: =IFERROR(INDEX(Töötajad[Töötaja nimi],Palgaleht),"") -> Denise Smith | K27: TÖÖTAJA ID | L27: =IFERROR(INDEX(Töötajad[ID],Palgaleht),"") -> 1003
C28: Maksud | E28: =IFERROR(INDEX(Töötajad[Maksud],Palgaleht),"") -> 1 | G28: Kinnipeetavad maksud | I28: =IFERROR(INDEX(Töötajad[Kinnipeetavad maksud],Palgaleht),"") -> 3 | K28: Töötunnid | M28: =IFERROR(INDEX(Töötajad[Regulaarsed töötunnid],Palgaleht),"") -> 35
C29: Tunnihind | E29: =IFERROR(INDEX(Töötajad[Tunnitasu],Palgaleht),"") -> 14 | G29: Ületunnitöö määr | I29: =IFERROR(INDEX(Töötajad[Ületunnitöö määr],Palgaleht),"") -> 0 | K29: Haiguspuhkuse tunnid | M29: =IFERROR(INDEX(Töötajad[Haiguspuhkuse tunnid],Palgaleht),"") -> 0
C30: Sotsiaalmaks | E30: =IFERROR(INDEX(Töötajad[Sotsiaalmaks],Palgaleht) * INDEX(Töötajad[Brutotasu],Palgaleht),"") -> 33.516 | G30: Tulumaks | I30: =IFERROR(INDEX(Töötajad[Tulumaks],Palgaleht) * INDEX(Töötajad[Brutotasu],Palgaleht),"") -> 148.96 | K30: Puhkusetunnid | M30: =IFERROR(INDEX(Töötajad[Puhkusetunnid],Palgaleht),"") -> 3
C31: Ravikindlustus | E31: =IFERROR(INDEX(Töötajad[Ravikindlustus],Palgaleht) * INDEX(Töötajad[Brutotasu],Palgaleht),"") -> 7.714 | G31: Maakonnamaks | I31: =IFERROR(INDEX(Töötajad[Maakonnamaks],Palgaleht) * INDEX(Töötajad[Brutotasu],Palgaleht),"") -> 12.236 | K31: Ületunnitöö | M31: =IFERROR(INDEX(Töötajad[Ületunnitöö],Palgaleht),"") -> 0
C32: Kindlustuse mahaarvamine | E32: =IFERROR(INDEX(Töötajad[Kindlustuse mahaarvamine],Palgaleht),"") -> 18 | G32: Muud regulaarsed mahaarvamised | I32: =IFERROR(INDEX(Töötajad[Muud regulaarsed mahaarvamised],Palgaleht),"") -> 20 | K32: Brutotasu | M32: =IFERROR(INDEX(Töötajad[Brutotasu],Palgaleht),"") -> 532
C33: Maksud kokku ja | E33: =IFERROR(INDEX(Töötajad[Maksud ja mahaarvamised],Palgaleht),"") -> 240.426 | G33: Muud mahaarvamised | I33: =IFERROR(INDEX(Töötajad[Muud mahaarvamised],Palgaleht),"") -> 0 | K33: Maksud ja mahaarvamised kokku | M33: =IFERROR(INDEX(Töötajad[Maksud ja mahaarvamised],Palgaleht) + INDEX(Töötajad[Muud mahaarvamised],Palgaleht),"") -> 240.426
C34: Regulaarsed mahaarvamised
K35: NETOTASU | M35: =IFERROR(INDEX(Töötajad[Netotasu],Palgaleht),"") -> 291.574
C38: =EttevõteNimi -> ADVENTURE WORKS
C39: PERIOOD | D39: =PerioodLõpp -> 41372 | G39: NIMI | H39: =IFERROR(INDEX(Töötajad[Töötaja nimi],Palgaleht),"") -> Sebastien Motte | K39: TÖÖTAJA ID | L39: =IFERROR(INDEX(Töötajad[ID],Palgaleht),"") -> 1008
C40: Maksud | E40: =IFERROR(INDEX(Töötajad[Maksud],Palgaleht),"") -> 1 | G40: Kinnipeetavad maksud | I40: =IFERROR(INDEX(Töötajad[Kinnipeetavad maksud],Palgaleht),"") -> 0 | K40: Töötunnid | M40: =IFERROR(INDEX(Töötajad[Regulaarsed töötunnid],Palgaleht),"") -> 50
C41: Tunnihind | E41: =IFERROR(INDEX(Töötajad[Tunnitasu],Palgaleht),"") -> 20 | G41: Ületunnitöö määr | I41: =IFERROR(INDEX(Töötajad[Ületunnitöö määr],Palgaleht),"") -> 0 | K41: Haiguspuhkuse tunnid | M41: =IFERROR(INDEX(Töötajad[Haiguspuhkuse tunnid],Palgaleht),"") -> 1
C42: Sotsiaalmaks | E42: =IFERROR(INDEX(Töötajad[Sotsiaalmaks],Palgaleht) * INDEX(Töötajad[Brutotasu],Palgaleht),"") -> 70.56 | G42: Tulumaks | I42: =IFERROR(INDEX(Töötajad[Tulumaks],Palgaleht) * INDEX(Töötajad[Brutotasu],Palgaleht),"") -> 313.6 | K42: Puhkusetunnid | M42: =IFERROR(INDEX(Töötajad[Puhkusetunnid],Palgaleht),"") -> 5
C43: Ravikindlustus | E43: =IFERROR(INDEX(Töötajad[Ravikindlustus],Palgaleht) * INDEX(Töötajad[Brutotasu],Palgaleht),"") -> 16.24 | G43: Maakonnamaks | I43: =IFERROR(INDEX(Töötajad[Maakonnamaks],Palgaleht) * INDEX(Töötajad[Brutotasu],Palgaleht),"") -> 25.76 | K43: Ületunnitöö | M43: =IFERROR(INDEX(Töötajad[Ületunnitöö],Palgaleht),"") -> 0
C44: Kindlustuse mahaarvamine | E44: =IFERROR(INDEX(Töötajad[Kindlustuse mahaarvamine],Palgaleht),"") -> 15 | G44: Muud regulaarsed mahaarvamised | I44: =IFERROR(INDEX(Töötajad[Muud regulaarsed mahaarvamised],Palgaleht),"") -> 0 | K44: Brutotasu | M44: =IFERROR(INDEX(Töötajad[Brutotasu],Palgaleht),"") -> 1120
C45: Maksud kokku ja | E45: =IFERROR(INDEX(Töötajad[Maksud ja mahaarvamised],Palgaleht),"") -> 441.16 | G45: Muud mahaarvamised | I45: =IFERROR(INDEX(Töötajad[Muud mahaarvamised],Palgaleht),"") -> 0 | K45: Maksud ja mahaarvamised kokku | M45: =IFERROR(INDEX(Töötajad[Maksud ja mahaarvamised],Palgaleht) + INDEX(Töötajad[Muud mahaarvamised],Palgaleht),"") -> 441.16
C46: Regulaarsed mahaarvamised
K47: NETOTASU | M47: =IFERROR(INDEX(Töötajad[Netotasu],Palgaleht),"") -> 678.84
